bitfinex-derivatives/quotes_SOLF0:USTF0_20250319
["timestamp","ask_amount","ask_price","bid_price","bid_amount"]
[1742400315458,16.2377922,131.74,131.73,7.5903]
[1742400316359,16.24558108,131.74,131.72,13.9396236]
[1742400316660,16.19517528,131.73,131.72,13.9396236]
[1742400316859,7.39635352,131.73,131.72,21.5300236]
[1742400317055,5.4992636,131.73,131.72,21.5300236]
[1742400318171,14.30051463,131.73,131.71,38.9912]
[1742400318363,14.30051463,131.72,131.71,31.4]
[1742400318661,14.30051463,131.72,131.71,38.9915]
[1742400318962,16.19783016,131.72,131.71,38.9915]
[1742400319358,7.39657913,131.72,131.71,38.9915]
[1742400320663,7.913e-05,131.72,131.71,38.9915]
[1742400320862,0.0504058,131.74,131.73,7.5903]
[1742400326163,0.0504058,131.74,131.72,7.5906]
[1742400326561,13.9396236,131.73,131.7,31.38]
[1742400327062,7.5909,131.72,131.68,13.9396236]
[1742400327266,7.5909,131.72,131.69,31.38]
[1742400327462,0.05033241,131.71,131.69,31.38]
[1742400327766,0.05033241,131.71,131.69,38.9723]
[1742400328261,0.05033241,131.71,131.68,13.9396236]
[1742400328460,13.98995601,131.71,131.68,31.36]
[1742400328863,9.43278025,131.69,131.68,38.9531]
[1742400329064,18.68775543,131.69,131.66,24.38036064]
[1742400329264,9.25497518,131.68,131.67,38.9535]
[1742400329561,9.25640993,131.68,131.67,38.9535]
[1742400329769,18.69066078,131.68,131.67,38.9535]
[1742400329964,9.25640993,131.68,131.66,10.44073704]
[1742400330267,18.69171549,131.67,131.66,10.44073704]
[1742400330666,9.25640993,131.67,131.66,10.44073704]
[1742400330866,12.293474,131.67,131.66,10.44073704]
[1742400331271,26.2330976,131.67,131.65,170.43972347]
[1742400331568,26.2330976,131.67,131.64,124.94843215]
[1742400331569,9.25640993,131.66,131.64,31.36]
[1742400331762,12.293474,131.65,131.64,31.36]
[1742400332666,19.84405574,131.65,131.64,31.36]
[1742400333059,19.84405574,131.65,131.64,38.9555]
[1742400333667,19.84405574,131.65,131.63,38.9558]
[1742400333872,14.90840114,131.64,131.63,38.9558]
[1742400334268,16.96078005,131.7,131.63,31.36]
[1742400334465,21.80906414,131.71,131.63,31.36]
[1742400334774,21.80906414,131.71,131.64,7.5953]
[1742400335068,21.80906414,131.69,131.64,7.5953]
[1742400335271,21.80906414,131.69,131.66,7.5941]
[1742400335469,0.05421637,131.68,131.66,7.5941]
[1742400335865,4.98991067,131.68,131.67,7.5938]
[1742400336070,4.98991067,131.68,131.65,0.05227936]
[1742400336766,1.89834396,131.67,131.65,0.05227936]
[1742400336968,1.89834396,131.67,131.66,7.5944]
[1742400337772,1.89834396,131.67,131.66,38.9544]
[1742400339684,1.89834396,131.67,131.66,31.36]
[1742400339884,1.89834396,131.67,131.65,7.64707936]
[1742400340276,1.89834396,131.67,131.65,0.05227936]
[1742400340887,1.89834396,131.66,131.65,7.64717936]
[1742400346187,7.22895109,131.66,131.65,7.64717936]
[1742400352086,7.22895109,131.66,131.65,0.05227936]
[1742400352591,7.22895109,131.66,131.65,7.64717936]
[1742400353187,7.22695302,131.66,131.65,7.64717936]
[1742400353492,16.05024498,131.66,131.65,0.05227936]
[1742400355295,35.85620566,131.66,131.65,0.05227936]
[1742400355691,40.64104876,131.66,131.65,0.05227936]
[1742400356896,43.45060566,131.66,131.65,0.05227936]
[1742400358397,43.45060566,131.66,131.63,38.9358]
[1742400358595,28.110844,131.65,131.63,38.9358]
[1742400358791,14.15190102,131.64,131.63,38.9358]
[1742400359493,33.04664876,131.64,131.6,45.29894298]
[1742400359689,14.15190102,131.63,131.6,45.29894298]
[1742400359899,14.15190102,131.62,131.61,7.5972]
[1742400360288,14.15190102,131.62,131.57,4.0329]
[1742400360289,35.707744,131.62,131.58,7.5985]
[1742400360493,28.110844,131.61,131.58,7.5985]
[1742400360796,14.15190102,131.6,131.57,45.29894298]
[1742400360991,14.15190102,131.59,131.58,7.599]
[1742400361991,19.08770578,131.59,131.58,7.599]
[1742400362498,4.93580476,131.59,131.58,21.55794298]
[1742400363293,4.76e-06,131.59,131.58,21.55794298]
[1742400363695,0.05758167,131.61,131.6,7.5978]
[1742400363897,2.8095569,131.62,131.6,45.29894298]
[1742400364090,13.95894298,131.66,131.61,13.95894298]
[1742400364288,22.13384298,131.67,131.64,7.5951]
[1742400364487,22.13384298,131.67,131.64,38.9351]
[1742400364998,22.1864201,131.67,131.64,38.9351]
[1742400365298,22.1864201,131.67,131.64,31.39230077]
[1742400365700,13.95894298,131.66,131.64,31.39230077]
[1742400366196,13.95894298,131.66,131.64,0.05230077]
[1742400366594,13.95894298,131.65,131.64,0.05230077]
[1742400367197,13.95894298,131.65,131.64,0.00421644]
[1742400368501,13.95894298,131.65,131.64,7.59971644]
[1742400368800,13.95894298,131.65,131.64,7.57971644]
[1742400369000,13.95894298,131.66,131.65,7.5949]
[1742400369303,22.1864201,131.67,131.62,45.29894298]
[1742400369798,18.1976201,131.67,131.62,45.29894298]
[1742400370200,18.1976201,131.67,131.66,7.5944]
[1742400370201,0.05257712,131.67,131.66,7.5944]
[1742400371899,0.05257712,131.67,131.65,38.9146]
[1742400372295,21.8548355,131.67,131.63,31.32]
[1742400372496,8.98331182,131.66,131.62,31.32]
[1742400372798,29.39725838,131.65,131.59,8.388]
[1742400373001,21.80225838,131.65,131.6,31.32]
[1742400373202,0.05403821,131.63,131.6,31.32]
[1742400373395,0.05403821,131.63,131.61,7.5969]
[1742400373993,0.05403821,131.63,131.6,38.9173]
[1742400374399,7.65043821,131.63,131.6,38.9175]
[1742400374697,5.36806349,131.62,131.6,38.9175]
[1742400374893,5.36806349,131.61,131.6,38.9175]
[1742400375898,7.26703745,131.61,131.6,7.5975]
[1742400376105,7.26703745,131.61,131.6,38.9175]
[1742400376298,13.12543137,131.61,131.6,38.9175]
[1742400376805,10.30523163,131.61,131.6,38.9175]
[1742400377500,0.05403821,131.63,131.61,7.5969]
[1742400377697,14.23646493,131.62,131.61,7.5969]
[1742400378598,19.17376537,131.62,131.61,7.5969]
[1742400378900,19.17376537,131.62,131.6,31.32]
[1742400378901,19.17376537,131.62,131.6,38.9176]
[1742400379107,14.23646493,131.61,131.6,38.9176]
[1742400379803,19.17376537,131.61,131.6,38.9176]
[1742400380204,19.17376537,131.61,131.56,25.83275838]
[1742400380507,14.69635448,131.6,131.57,31.3]
[1742400380805,14.69635448,131.59,131.58,7.599]
[1742400381108,19.63365492,131.59,131.58,7.599]
[1742400382207,19.63365492,131.59,131.57,31.3]
[1742400382403,14.69635448,131.58,131.57,31.3]
[1742400382603,14.69635448,131.58,131.57,38.8996]
[1742400382900,19.63365492,131.58,131.57,38.8996]
[1742400383309,19.63365492,131.58,131.56,7.5999]
[1742400383498,14.69635448,131.57,131.56,31.3]
[1742400383703,19.63365492,131.57,131.56,38.9001]
[1742400384005,19.63365492,131.57,131.56,7.6001]
[1742400384205,19.63365492,131.57,131.56,38.9001]
[1742400384409,19.63365492,131.57,131.56,7.6001]
[1742400384707,19.63365492,131.57,131.56,38.9001]
[1742400385505,22.44656918,131.57,131.56,38.9001]
[1742400385903,22.41890013,131.57,131.56,38.9001]
[1742400387709,19.60598587,131.57,131.56,38.9001]
[1742400388110,22.41890013,131.57,131.56,38.9001]
[1742400389414,22.41890013,131.57,131.56,31.3]
[1742400389620,22.53631847,131.57,131.55,7.6004]
[1742400389915,22.53631847,131.56,131.55,7.6004]
[1742400391209,22.53631847,131.56,131.55,21.57285518]
[1742400391617,19.72340421,131.56,131.55,21.57285518]
[1742400392608,4.21e-06,131.56,131.55,21.57285518]
[1742400393813,0.05715668,131.58,131.57,7.5996]
[1742400394017,0.05715668,131.58,131.57,38.8996]
[1742400394412,0.05715668,131.58,131.57,31.3]
[1742400394610,0.05715668,131.58,131.57,17.62115785]
[1742400394816,0.05715668,131.58,131.55,31.3]
[1742400395008,14.02961186,131.58,131.55,38.9006]
[1742400395207,14.02961186,131.58,131.55,7.6006]
[1742400395612,0.05715668,131.58,131.56,7.6001]
[1742400395808,0.05715668,131.58,131.55,13.97245518]
[1742400396216,0.05715668,131.58,131.55,21.57285518]
[1742400396413,0.05715668,131.58,131.55,7.6004]
[1742400396912,0.05715668,131.58,131.56,7.6001]
[1742400397213,0.05715668,131.58,131.54,45.27245518]
[1742400397406,0.05715668,131.58,131.55,13.97245518]
[1742400398407,0.05715668,131.58,131.56,13.97245518]
[1742400398713,7.65645668,131.58,131.55,31.28]
[1742400398911,21.62891186,131.58,131.55,38.8805]
[1742400399111,21.62891186,131.58,131.55,31.28]
[1742400399312,0.05715668,131.58,131.55,31.28]
[1742400399615,0.05715668,131.58,131.56,7.6001]
[1742400400310,0.05715668,131.58,131.57,7.5996]
[1742400400919,0.05715668,131.58,131.56,7.5999]
[1742400401218,0.05715668,131.58,131.55,31.28]
[1742400401610,0.05715668,131.58,131.57,7.5996]
[1742400402011,0.05715668,131.58,131.55,31.28]
[1742400402215,0.05715668,131.58,131.56,7.5998]
[1742400403422,7.65615668,131.58,131.56,7.5998]
[1742400403621,3.03969146,131.57,131.56,7.5998]
[1742400405222,4.93961257,131.57,131.56,7.5998]
[1742400406918,4.93961257,131.57,131.55,38.8806]
[1742400407322,4.93961257,131.56,131.55,38.8806]
[1742400408724,4.93961257,131.56,131.55,52.85305518]
[1742400411422,1.257e-05,131.56,131.55,52.85305518]
[1742400416522,45.23246775,131.56,131.5,43.09002652]
[1742400416828,13.97245518,131.54,131.5,41.76753659]
[1742400417026,14.02072647,131.54,131.5,41.76753659]
[1742400417224,14.02072647,131.54,131.51,31.26]
[1742400417423,14.02072647,131.54,131.51,73.02753659]
[1742400417627,14.02072647,131.54,131.51,59.34400651]
[1742400418024,13.97245518,131.52,131.51,59.34400651]
[1742400418327,21.57485518,131.52,131.51,41.76753659]
[1742400418521,21.57485518,131.52,131.51,37.21125923]
[1742400419124,21.57485518,131.52,131.51,17.92635923]
[1742400419329,21.57245518,131.52,131.49,124.94843215]
[1742400419529,13.97245518,131.5,131.49,124.94843215]
[1742400419930,21.57605518,131.5,131.49,124.94843215]
[1742400420225,13.97245518,131.5,131.49,124.94843215]
[1742400420432,0.05341687,131.51,131.49,124.94843215]
[1742400420627,0.05341687,131.51,131.49,138.92088733]
[1742400421333,0.05341687,131.51,131.49,124.94843215]
[1742400421536,3.04086284,131.5,131.48,38.8644]
[1742400421827,3.04086284,131.49,131.48,38.8644]
[1742400422029,0.05341687,131.51,131.48,31.26]
[1742400422229,0.05341687,131.51,131.48,53.1126335]
[1742400422728,0.05341687,131.51,131.48,31.26]
[1742400422930,7.6041,131.5,131.48,31.26]
[1742400423131,0.05341687,131.51,131.48,31.26]
[1742400423331,0.05341687,131.51,131.47,0.02035458]
[1742400423523,7.6048,131.48,131.47,31.28035458]
[1742400423729,1.90081239,131.5,131.47,31.28035458]
[1742400423930,1.90081239,131.48,131.47,31.28035458]
[1742400424836,9.50561239,131.48,131.47,31.28035458]
[1742400425740,7.6048,131.48,131.47,0.02035458]
[1742400428630,9.50620346,131.48,131.47,0.02035458]
[1742400430033,9.50140346,131.48,131.4,3.9057]
[1742400430234,7.6088,131.41,131.4,35.1657]
[1742400430432,21.8526335,131.45,131.4,35.1657]
[1742400430734,1.90140346,131.44,131.4,35.1657]
[1742400431137,9.50870346,131.44,131.4,35.1657]
[1742400431337,0.05459286,131.43,131.4,35.1657]
[1742400431636,0.05459286,131.43,131.41,7.6084]
[1742400431839,0.05459286,131.43,131.41,11.5498]
[1742400432433,0.05459286,131.43,131.41,3.9414]
[1742400434833,0.05459286,131.43,131.41,11.5501]
[1742400435034,0.05459286,131.43,131.41,3.9414]
[1742400435827,0.05459286,131.43,131.42,7.6082]
[1742400437129,21.8526335,131.49,131.45,7.6062]
[1742400437329,284.1126335,131.51,131.45,38.8662]
[1742400437631,1.90130197,131.48,131.46,7.6054]
[1742400438232,7.6037,131.5,131.46,7.6054]
[1742400438536,0.05675836,131.48,131.46,7.65748928]
[1742400438739,0.05675836,131.48,131.47,7.6053]
[1742400439139,0.05675836,131.48,131.46,0.05208928]
[1742400439840,7.66185836,131.48,131.46,0.05208928]
[1742400441447,0.05675836,131.48,131.46,0.05208928]
[1742400442036,0.05675836,131.48,131.47,7.6053]
[1742400442235,0.05675836,131.48,131.46,0.05208928]
[1742400442641,7.66195836,131.48,131.46,0.05208928]
[1742400442842,0.05675836,131.48,131.46,0.05208928]
[1742400444243,7.66195836,131.48,131.46,0.05208928]
[1742400444738,0.05675836,131.48,131.46,0.05208928]
[1742400444944,7.6053,131.47,131.46,0.05208928]
[1742400445540,0.05675836,131.48,131.46,0.05208928]
[1742400445541,7.66175836,131.48,131.46,0.05208928]
[1742400445741,1.90141372,131.47,131.46,0.05208928]
[1742400446241,9.50671372,131.47,131.46,0.05208928]
[1742400446541,1.90141372,131.47,131.46,0.05208928]
[1742400447642,9.50671372,131.47,131.46,0.05208928]
[1742400447844,31.35934722,131.47,131.46,0.05208928]
[1742400448946,1.90141372,131.47,131.46,0.05208928]
[1742400449346,1.90141372,131.47,131.46,7.65798928]
[1742400449546,0.05675836,131.48,131.46,0.05208928]
[1742400449843,0.05675836,131.48,131.47,7.6053]
[1742400452240,3.9916,131.54,131.46,25.91702278]
[1742400452552,7.6029,131.52,131.46,25.8649335]
[1742400452849,1.9006987,131.53,131.46,4.0123]
[1742400452850,23.7533322,131.53,131.46,4.0123]
[1742400453050,7.6037,131.5,131.46,4.0123]
[1742400453248,7.6037,131.5,131.48,0.05273362]
[1742400453448,0.05112816,131.51,131.48,31.27273362]
[1742400453950,1.9006987,131.5,131.48,31.27273362]
[1742400454251,1.9006987,131.5,131.49,7.6041]
[1742400454452,0.05112816,131.51,131.49,7.6041]
[1742400454652,0.05112816,131.51,131.5,7.6036]
[1742400457856,1.95168287,131.51,131.48,31.27273362]
[1742400458361,0.05112816,131.51,131.49,31.22]
[1742400458557,0.05112816,131.51,131.49,38.8237]
[1742400458862,1.90064083,131.5,131.49,38.8237]
[1742400459364,1.90064083,131.5,131.49,31.22]
[1742400461355,1.90064083,131.5,131.48,31.25273362]
[1742400462064,1.90064083,131.49,131.48,31.25273362]
[1742400463065,1.90064083,131.49,131.48,0.05273362]
[1742400463460,9.50484083,131.49,131.48,0.05273362]
[1742400466166,1.90064083,131.49,131.48,0.05273362]
[1742400466761,1.90064083,131.49,131.48,7.65753362]
[1742400466967,1.90064083,131.49,131.48,0.05273362]
[1742400467361,1.90064083,131.49,131.48,7.65753362]
[1742400470069,1.90064083,131.49,131.48,0.05273362]
[1742400470374,1.90064083,131.49,131.48,7.65753362]
[1742400473869,1.90064083,131.49,131.48,0.05273362]
[1742400475774,9.50484083,131.49,131.48,0.05273362]
[1742400476172,1.90064083,131.49,131.48,0.05273362]
[1742400476376,9.50484083,131.49,131.48,0.05273362]
[1742400478175,1.90064083,131.49,131.48,0.05273362]
[1742400478876,1.90064083,131.49,131.48,7.65753362]
[1742400479069,1.90064083,131.49,131.48,0.05273362]
[1742400479266,9.50484083,131.49,131.48,0.05273362]
[1742400479466,1.90064083,131.49,131.48,0.05273362]
[1742400480174,21.8526335,131.5,131.48,0.05273362]
[1742400480384,29.4564335,131.5,131.48,0.05273362]
[1742400481281,7.65452816,131.51,131.48,0.05273362]
[1742400481979,0.05112816,131.51,131.48,0.05273362]
[1742400482878,0.05112816,131.51,131.49,31.18]
[1742400483481,0.05112816,131.51,131.5,7.6036]
[1742400484681,0.05112816,131.51,131.49,31.18]
[1742400485279,7.6036,131.5,131.49,31.18]
[1742400485778,0.05112816,131.51,131.5,7.6036]
[1742400486382,0.05112816,131.51,131.48,0.05273362]
[1742400486975,7.6038,131.5,131.48,7.65723362]
[1742400487279,0.05112816,131.51,131.48,0.05273362]
[1742400487584,0.05112816,131.51,131.49,7.6042]
[1742400488175,7.65442816,131.51,131.48,7.65723362]
[1742400488383,0.05112816,131.51,131.48,7.65723362]
[1742400488572,0.05112816,131.51,131.48,0.05273362]
[1742400488777,0.05112816,131.51,131.5,7.6036]
[1742400489485,0.05112816,131.51,131.48,0.05273362]
[1742400489785,21.8526335,131.5,131.48,0.05273362]
[1742400489986,0.05112816,131.51,131.48,7.65733362]
[1742400490585,7.65442816,131.51,131.48,7.65733362]
[1742400490882,0.05112816,131.51,131.49,38.7639]
[1742400491085,0.05112816,131.51,131.49,31.16]
[1742400491982,0.05112816,131.51,131.49,38.7638]
[1742400492183,0.05112816,131.51,131.49,31.16]
[1742400492685,7.6036,131.5,131.49,31.16]
[1742400492886,0.05112816,131.51,131.49,31.16]
[1742400493186,0.05112816,131.51,131.5,7.6036]
[1742400495183,0.05112816,131.51,131.49,38.7639]
[1742400496481,0.05112816,131.51,131.5,7.6036]
[1742400497082,10.50699639,131.56,131.5,7.6]
[1742400497288,121.28008477,131.57,131.54,21.8526335]
[1742400497483,121.28008477,131.57,131.55,35.032]
[1742400497688,121.28008477,131.57,131.56,7.6001]
[1742400498090,115.57696031,131.57,131.56,7.6001]
[1742400499588,0.05713004,131.58,131.57,7.5996]
[1742400500584,0.05713004,131.58,131.57,29.4522335]
[1742400500791,7.5964,131.63,131.59,7.598]
[1742400500993,115.57696031,131.64,131.6,31.14]
[1742400501193,123.17276031,131.64,131.6,38.7375]
[1742400501788,115.57696031,131.64,131.61,0.05786509]
[1742400501991,0.05463627,131.63,131.61,0.05786509]
[1742400502189,0.05463627,131.63,131.62,7.5967]
[1742400503589,31.52098917,131.67,131.61,25.84419859]
[1742400503791,31.52098917,131.67,131.63,21.8526335]
[1742400503999,31.52098917,131.67,131.64,31.14]
[1742400504693,31.5731167,131.67,131.64,31.19089615]
[1742400505293,31.5731167,131.67,131.64,38.78609615]
[1742400505594,31.5731167,131.67,131.64,31.19089615]
[1742400505794,31.5731167,131.67,131.64,38.78599615]
[1742400506096,31.5731167,131.67,131.64,31.19089615]
[1742400506292,0.05212753,131.67,131.64,31.19089615]
[1742400507300,0.05212753,131.67,131.65,7.5945]
[1742400507502,0.05212753,131.67,131.64,31.19089615]
[1742400507702,0.05212753,131.67,131.65,21.8526335]
[1742400507895,0.05212753,131.67,131.66,7.5944]
[1742400508095,4.1124,131.75,131.65,26.0340335]
[1742400508299,4.1124,131.75,131.67,21.8526335]
[1742400508499,25.9650335,131.75,131.68,31.12]
[1742400508802,21.8526335,131.73,131.68,31.12]
[1742400508996,7.5919,131.71,131.68,31.12]
[1742400509197,0.05111247,131.72,131.69,0.05448246]
[1742400509500,7.5921,131.7,131.69,0.05448246]
[1742400510100,7.5932,131.68,131.67,31.12]
[1742400510905,7.5929,131.69,131.67,31.12]
[1742400511403,0.05484399,131.69,131.67,31.17172957]
[1742400511897,0.05484399,131.69,131.67,38.76542957]
[1742400512105,7.64754399,131.69,131.67,31.17172957]
[1742400512706,7.5932,131.68,131.67,31.17172957]
[1742400513200,7.5932,131.68,131.67,0.05172957]
[1742400515605,0.05484399,131.69,131.67,0.05172957]
[1742400515803,0.05484399,131.69,131.68,31.1]
[1742400517208,4.1124,131.75,131.68,31.1]
[1742400517403,4.1124,131.75,131.72,7.5906]
[1742400517598,4.1124,131.75,131.73,31.1]
[1742400518205,11.75274494,131.75,131.73,31.1529831]
[1742400519125,0.05104494,131.75,131.73,31.1529831]
[1742400519821,0.05104494,131.75,131.74,7.5897]
[1742400520024,4.0857,131.81,131.74,21.8526335]
[1742400520322,7.5875,131.78,131.75,7.5889]
[1742400520527,7.5875,131.78,131.75,38.6689]
[1742400521118,7.63911395,131.78,131.75,38.72491682]
[1742400521820,0.05161395,131.78,131.77,7.588]
[1742400522325,0.05161395,131.78,131.75,31.13601682]
[1742400523423,0.05161395,131.78,131.76,7.5883]
[1742400524029,0.05161395,131.78,131.77,7.588]
[1742400525532,7.5854,131.82,131.79,7.5867]
[1742400525832,7.5847,131.83,131.79,31.06]
[1742400526127,7.5867,131.8,131.77,31.06]
[1742400526525,0.05639684,131.8,131.77,31.11635377]
[1742400527030,7.5874,131.78,131.77,0.05635377]
[1742400533224,0.05639684,131.8,131.77,0.05635377]
[1742400533429,0.05639684,131.8,131.78,31.04]
[1742400534535,0.05639684,131.8,131.79,7.5869]
[1742400534738,0.05639684,131.8,131.78,31.04]
[1742400535234,0.05639684,131.8,131.78,38.627]
[1742400535631,0.05639684,131.8,131.78,31.04]
[1742400536225,7.64279684,131.8,131.77,0.05635377]
[1742400536630,0.05639684,131.8,131.77,0.05635377]
[1742400537435,7.587,131.79,131.77,0.05635377]
[1742400537732,0.05639684,131.8,131.77,0.05635377]
[1742400538036,7.64299684,131.8,131.77,0.05635377]
[1742400539151,0.05639684,131.8,131.77,7.64405377]
[1742400539438,0.05639684,131.8,131.77,0.05635377]
[1742400540341,7.64299684,131.8,131.77,7.64405377]
[1742400540842,0.05639684,131.8,131.78,7.5871]
[1742400541342,0.05639684,131.8,131.77,0.05635377]
[1742400541845,0.05639684,131.8,131.79,7.5869]
[1742400542244,0.05639684,131.8,131.79,38.6269]
[1742400544443,0.05639684,131.8,131.79,31.04]
[1742400544639,7.64299684,131.8,131.77,31.07635377]
[1742400544833,0.05639684,131.8,131.77,31.07635377]
[1742400545040,0.05639684,131.8,131.78,7.587]
[1742400545342,0.05639684,131.8,131.77,31.07635377]
[1742400546244,7.64299684,131.8,131.78,7.5874]
[1742400546545,0.05639684,131.8,131.77,31.07635377]
[1742400546740,7.5874,131.78,131.77,0.05635377]
[1742400547046,0.05639684,131.8,131.77,0.05635377]
[1742400547344,7.64309684,131.8,131.77,7.64405377]
[1742400547740,0.05639684,131.8,131.77,7.64405377]
[1742400547937,7.64299684,131.8,131.77,7.64405377]
[1742400548140,0.05639684,131.8,131.77,0.05635377]
[1742400548643,0.05639684,131.8,131.78,31.02]
[1742400549238,0.05639684,131.8,131.79,7.5869]
[1742400552256,261.96,131.87,131.84,7.5836]
[1742400552443,4.2064,131.9,131.8,21.8526335]
[1742400552643,7.5812,131.89,131.82,21.8526335]
[1742400552845,4.2064,131.9,131.84,21.8526335]
[1742400553050,4.2064,131.9,131.85,31.02]
[1742400553243,4.2064,131.9,131.84,31.02]
[1742400553449,0.05351084,131.89,131.86,0.05775923]
[1742400553850,7.5817,131.88,131.86,0.05775923]
[1742400554945,7.63481084,131.89,131.86,0.05775923]
[1742400555259,0.05351084,131.89,131.86,0.05775923]
[1742400556257,7.63481084,131.89,131.86,0.05775923]
[1742400556456,7.63481084,131.89,131.86,7.64045923]
[1742400556854,7.63481084,131.89,131.86,0.05775923]
[1742400557054,7.5819,131.88,131.86,0.05775923]
[1742400557559,0.05351084,131.89,131.86,7.64055923]
[1742400557760,0.05351084,131.89,131.86,0.05775923]
[1742400557961,0.05351084,131.89,131.87,31.0]
[1742400560263,7.5817,131.88,131.87,31.0]
[1742400560655,7.5823,131.87,131.86,0.05775923]
[1742400563362,0.05351084,131.89,131.86,0.05775923]
[1742400563962,7.63491084,131.89,131.86,7.64025923]
[1742400564861,0.05351084,131.89,131.87,7.582]
[1742400565963,0.05351084,131.89,131.86,0.05775923]
[1742400565964,7.63471084,131.89,131.86,0.05775923]
[1742400566160,0.05351084,131.89,131.86,0.05775923]
[1742400566463,0.05351084,131.89,131.87,7.582]
[1742400566661,0.05351084,131.89,131.86,0.05775923]
[1742400567465,0.05351084,131.89,131.88,7.5817]
[1742400567656,0.05351084,131.89,131.88,29.4343335]
[1742400567861,7.5786,131.94,131.88,21.8526335]
[1742400568061,7.5786,131.94,131.92,7.5791]
[1742400568962,7.63523333,131.94,131.92,7.63517503]
[1742400569164,7.63523333,131.94,131.92,0.05607503]
[1742400570557,7.5788,131.93,131.92,0.05607503]
[1742400571267,7.63513333,131.94,131.92,0.05607503]
[1742400571468,0.05663333,131.94,131.92,0.05607503]
[1742400571967,7.5788,131.93,131.92,0.05607503]
[1742400576262,31.01663333,131.94,131.88,38.5416]
[1742400576767,21.8526335,131.93,131.8,15.1719]
[1742400576973,21.8526335,131.89,131.84,30.96]
[1742400577271,7.5832,131.86,131.84,30.96]
[1742400577570,0.05169759,131.88,131.85,0.04835563]
[1742400577769,7.5828,131.86,131.85,0.04835563]
[1742400580563,7.5843,131.84,131.79,283.3926335]
[1742400580768,21.8526335,131.87,131.8,30.94]
[1742400580969,30.94,131.88,131.83,7.5841]
[1742400581171,30.94,131.88,131.81,52.7926335]
[1742400581372,39.3125,131.9,131.83,21.8526335]
[1742400581673,0.05573891,131.88,131.85,7.63312918]
[1742400581869,0.05573891,131.88,131.85,0.05012918]
[1742400582072,4.2435,131.94,131.87,21.8526335]
[1742400582274,7.5789,131.93,131.88,30.94]
[1742400582573,4.2435,131.94,131.88,30.94]
[1742400582774,11.8221,131.94,131.9,7.5803]
[1742400583163,4.2435,131.94,131.88,30.94]
[1742400583469,4.2435,131.94,131.91,0.05030507]
[1742400583470,0.0498666,131.93,131.91,0.05030507]
[1742400583872,7.6289666,131.93,131.91,0.05030507]
[1742400586272,0.0498666,131.93,131.91,0.05030507]
[1742400586976,0.0498666,131.93,131.91,7.62990507]
[1742400587168,0.0498666,131.93,131.91,0.05030507]
[1742400587371,7.6290666,131.93,131.91,0.05030507]
[1742400588375,0.0498666,131.93,131.91,7.63000507]
[1742400588577,0.0498666,131.93,131.91,0.05030507]
[1742400588876,0.0498666,131.93,131.91,30.99030507]
[1742400589081,0.0498666,131.93,131.92,7.5794]
[1742400590374,0.0498666,131.93,131.91,38.57000507]
[1742400590578,0.0498666,131.93,131.91,30.99030507]
[1742400590772,0.0498666,131.93,131.91,0.05030507]
[1742400590973,7.6289666,131.93,131.91,0.05030507]
[1742400592073,7.5794,131.92,131.91,0.05030507]
[1742400594381,21.9025001,131.93,131.85,30.92]
[1742400594569,21.8526335,131.93,131.85,30.92]
[1742400594878,7.581,131.9,131.87,7.582]
[1742400595272,7.581,131.9,131.87,7.63905909]
[1742400595471,7.63712394,131.9,131.88,7.5816]
[1742400595673,7.63712394,131.9,131.87,0.05705909]
[1742400596275,0.05612394,131.9,131.89,7.5811]
[1742400596578,0.05612394,131.9,131.87,0.05705909]
[1742400596773,7.63702394,131.9,131.87,7.63905909]
[1742400596976,0.05612394,131.9,131.87,0.05705909]
[1742400597375,7.5817,131.88,131.87,0.05705909]
[1742400600482,7.5834,131.86,131.82,38.7459]
[1742400600681,7.5834,131.86,131.83,7.5843]
[1742400601484,7.5834,131.86,131.84,7.5839]
[1742400601681,0.05835058,131.86,131.84,7.5839]
[1742400602279,0.05835058,131.86,131.83,0.0503218]
[1742400602480,7.64145058,131.86,131.83,0.0503218]
[1742400602875,7.64145058,131.86,131.84,7.5837]
[1742400603087,0.05835058,131.86,131.83,0.0503218]
[1742400603986,0.05835058,131.86,131.83,7.6346218]
[1742400604175,0.05835058,131.86,131.83,30.9703218]
[1742400604375,0.05835058,131.86,131.83,52.8229553]
[1742400604582,0.05835058,131.86,131.85,7.5834]
[1742400605482,0.05835058,131.86,131.85,29.4360335]
[1742400605785,269.1201,131.91,131.85,21.8526335]
[1742400605984,261.54,131.91,131.86,30.92]
[1742400606183,261.54,131.91,131.89,7.5811]
[1742400606483,3.919,131.93,131.86,30.92]